fUST/lending_fUST_20250106
["ID","MTS","AMOUNT","RATE_DAILY","PERIOD"]
[347875952,1736176250234,-626.48441795,0.0002,3]
[347875953,1736176250243,-500.0,0.0002,3]
[347875954,1736176250254,-500.0,0.0002,3]
[347875955,1736176250263,-500.0,0.0002,3]
[347875956,1736176250273,-381.051102,0.0002,3]
[347875957,1736176250282,-500.0,0.0002,3]
[347875958,1736176250291,-3279.32,0.0002,3]
[347875959,1736176250301,-500.0,0.0002,3]
[347875960,1736176250310,-500.0,0.0002,3]
[347875961,1736176250319,-500.0,0.0002,3]
[347875962,1736176250329,-500.0,0.0002,3]
[347875963,1736176250339,-2483.39,0.0002,3]
[347875964,1736176250348,-500.0,0.0002,3]
[347875965,1736176250359,-151.91983262,0.0002,3]
[347875966,1736176250368,-500.0,0.0002,3]
[347875967,1736176250378,-500.0,0.0002,3]
[347875968,1736176250387,-500.0,0.0002,3]
[347875969,1736176250397,-500.0,0.0002,3]
[347875970,1736176250407,-500.0,0.0002,3]
[347875971,1736176250417,-500.0,0.0002,3]
[347875972,1736176250426,-500.0,0.0002,3]
[347875973,1736176250436,-500.0,0.0002,3]
[347875974,1736176250446,-500.0,0.0002,3]
[347875975,1736176250455,-523.99385536,0.0002,3]
[347875976,1736176250465,-500.0,0.0002,3]
[347875977,1736176250474,-500.0,0.0002,3]
[347875978,1736176250485,-432.84,0.0002,3]
[347875979,1736176250494,-157.78,0.0002,3]
[347875980,1736176250508,-500.0,0.0002,3]
[347875981,1736176250517,-500.0,0.0002,3]
[347875982,1736176250526,-500.0,0.0002,3]
[347875983,1736176250536,-500.0,0.0002,3]
[347875984,1736176250546,-279.93,0.0002,3]
[347875985,1736176250556,-500.0,0.0002,3]
[347875986,1736176250566,-768.89,0.0002,3]
[347875987,1736176250576,-1864.28,0.0002,3]
[347875988,1736176250585,-553.72,0.0002,3]
[347875989,1736176250594,-500.0,0.0002,3]
[347875990,1736176250604,-500.0,0.0002,3]
[347875991,1736176250614,-500.0,0.0002,3]
[347875992,1736176250623,-500.0,0.0002,3]
[347875993,1736176250633,-500.0,0.0002,3]
[347875994,1736176250643,-500.0,0.0002,3]
[347875995,1736176250653,-10186.74,0.0002,3]
[347875996,1736176250663,-256.16,0.0002,3]
[347875997,1736176250672,-785.92,0.0002,3]
[347875998,1736176250682,-500.0,0.0002,3]
[347875999,1736176250692,-500.0,0.0002,3]
[347876000,1736176250702,-500.0,0.0002,3]
[347876001,1736176250711,-375.73,0.0002,3]
[347876002,1736176250721,-97.94435976,0.0002,3]
[347876003,1736176250991,-721.84564024,0.0002,3]
[347876004,1736176251001,-254.25,0.0002,3]
[347876005,1736176251015,-500.0,0.0002,3]
[347876006,1736176251025,-500.0,0.0002,3]
[347876007,1736176251037,-500.0,0.0002,3]
[347876008,1736176251046,-500.0,0.0002,3]
[347876009,1736176251055,-500.0,0.0002,3]
[347876010,1736176251064,-500.0,0.0002,3]
[347876011,1736176251075,-500.0,0.0002,3]
[347876012,1736176251085,-500.0,0.0002,3]
[347876013,1736176251095,-266.79,0.0002,3]
[347876014,1736176251106,-500.0,0.0002,3]
[347876015,1736176251115,-500.0,0.0002,3]
[347876016,1736176251126,-500.0,0.0002,3]
[347876017,1736176251135,-500.0,0.0002,3]
[347876018,1736176251145,-500.0,0.0002,3]
[347876019,1736176251155,-500.0,0.0002,3]
[347876020,1736176251164,-500.0,0.0002,3]
[347876021,1736176251174,-500.0,0.0002,3]
[347876022,1736176251184,-500.0,0.0002,3]
[347876023,1736176251193,-619.77,0.0002,3]
[347876024,1736176251202,-500.0,0.0002,3]
[347876025,1736176251212,-500.0,0.0002,3]
[347876026,1736176251222,-500.0,0.0002,3]
[347876027,1736176251231,-938.96,0.0002,3]
[347876028,1736176251241,-500.0,0.0002,3]
[347876029,1736176251250,-733.9,0.0002,3]
[347876030,1736176251264,-500.0,0.0002,3]
[347876031,1736176251275,-500.0,0.0002,3]
[347876032,1736176251284,-500.0,0.0002,3]
[347876033,1736176251294,-1261.71,0.0002,3]
[347876034,1736176251303,-500.0,0.0002,3]
[347876035,1736176251312,-500.0,0.0002,3]
[347876036,1736176251322,-365.69433599,0.0002,3]
[347876037,1736176251331,-500.0,0.0002,3]
[347876038,1736176251341,-500.0,0.0002,3]
[347876039,1736176251350,-500.0,0.0002,3]
[347876040,1736176251360,-500.0,0.00020021,2]
[347876041,1736176251370,-500.0,0.00020021,2]
[347876042,1736176251379,-501.28433858,0.00020021,2]
[347876043,1736176251388,-532.93386721,0.00020021,2]
[347876044,1736176251397,-5388.49,0.00020272,3]
[347876045,1736176251406,-500.0,0.00020273,3]
[347876046,1736176251416,-534.27570609,0.00020273,3]
[347876047,1736176251425,-198.65986322,0.00020273,3]
[347876048,1736176251435,-500.0,0.00020273,3]
[347876049,1736176251443,-500.0,0.00020273,3]
[347876050,1736176251453,-609.30933581,0.00020273,3]
[347876051,1736176251462,-500.0,0.00020273,3]
[347876052,1736176251471,-500.0,0.00020273,3]
[347876053,1736176251480,-550.96,0.00020273,3]
[347876054,1736176251490,-500.0,0.00020273,3]
[347876055,1736176251499,-500.0,0.00020273,3]
[347876056,1736176251512,-500.0,0.00020273,3]
[347876057,1736176251521,-500.0,0.00020273,3]
[347876058,1736176251531,-500.0,0.00020273,3]
[347876059,1736176251540,-500.0,0.00020273,3]
[347876060,1736176251549,-500.0,0.00020273,3]
[347876061,1736176251559,-500.0,0.00020273,3]
[347876062,1736176251568,-480.6,0.00020273,3]
[347876063,1736176251578,-500.0,0.00020273,3]
[347876064,1736176251588,-419.18,0.00020273,3]
[347876065,1736176251597,-500.0,0.00020273,3]
[347876066,1736176251607,-3279.32,0.00020273,3]
[347876067,1736176251616,-500.0,0.00020273,3]
[347876068,1736176251625,-500.0,0.00020273,3]
[347876069,1736176251635,-500.0,0.00020273,3]
[347876070,1736176251644,-500.0,0.00020273,3]
[347876071,1736176251653,-2483.39,0.00020273,3]
[347876072,1736176251663,-500.0,0.00020273,3]
[347876073,1736176251672,-500.0,0.00020273,3]
[347876074,1736176251683,-500.0,0.00020273,3]
[347876075,1736176251692,-500.0,0.00020273,3]
[347876076,1736176251702,-583.89830634,0.00020273,3]
[347876077,1736176251711,-500.0,0.00020273,3]
[347876078,1736176251720,-500.0,0.00020273,3]
[347876079,1736176251730,-506.29421908,0.00020273,3]
[347876080,1736176251739,-500.0,0.00020273,3]
[347876081,1736176251748,-500.0,0.00020273,3]
[347876082,1736176251762,-268.3393543,0.00020273,3]
[347876083,1736176251771,-243.46826239,0.00020273,3]
[347876084,1736176251780,-500.0,0.00020273,3]
[347876085,1736176251790,-500.0,0.00020273,3]
[347876086,1736176251799,-500.0,0.00020273,3]
[347876087,1736176251808,-500.0,0.00020273,3]
[347876088,1736176251817,-768.89,0.00020273,3]
[347876089,1736176251827,-1864.28,0.00020273,3]
[347876090,1736176251836,-500.0,0.00020273,3]
[347876091,1736176251847,-500.0,0.00020273,3]
[347876092,1736176251856,-500.0,0.00020273,3]
[347876093,1736176251866,-500.0,0.00020273,3]
[347876094,1736176251875,-500.0,0.00020273,3]
[347876095,1736176251886,-500.0,0.00020273,3]
[347876096,1736176251895,-10186.74,0.00020273,3]
[347876097,1736176251905,-785.92,0.00020273,3]
[347876098,1736176251914,-500.0,0.00020273,3]
[347876099,1736176251923,-500.0,0.00020273,3]
[347876100,1736176251933,-500.0,0.00020273,3]
[347876101,1736176251942,-819.79,0.00020273,3]
[347876102,1736176251951,-500.0,0.00020273,3]
[347876103,1736176251961,-500.0,0.00020273,3]
[347876104,1736176251970,-500.0,0.00020273,3]
[347876105,1736176251979,-500.0,0.00020273,3]
[347876106,1736176251989,-500.0,0.00020273,3]
[347876107,1736176251998,-595.64935349,0.00020273,3]
[347876108,1736176252011,-500.0,0.00020273,3]
[347876109,1736176252022,-500.0,0.00020273,3]
[347876110,1736176252033,-500.0,0.00020273,3]
[347876111,1736176252043,-500.0,0.00020273,3]
[347876112,1736176252052,-500.0,0.00020273,3]
[347876113,1736176252062,-363.5,0.00020273,3]
[347876114,1736176252071,-500.0,0.00020273,3]
[347876115,1736176252081,-509.93732249,0.00020273,3]
[347876116,1736176252091,-500.0,0.00020273,3]
[347876117,1736176252100,-500.0,0.00020273,3]
[347876118,1736176252109,-500.0,0.00020273,3]
[347876119,1736176252119,-500.0,0.00020273,3]
[347876120,1736176252129,-500.0,0.00020273,3]
[347876121,1736176252139,-500.0,0.00020273,3]
[347876122,1736176252148,-938.96,0.00020273,3]
[347876123,1736176252158,-500.0,0.00020273,3]
[347876124,1736176252168,-733.9,0.00020273,3]
[347876125,1736176252178,-500.0,0.00020273,3]
[347876126,1736176252191,-500.0,0.00020273,3]
[347876127,1736176252201,-500.0,0.00020273,3]
[347876128,1736176252210,-1261.71,0.00020273,3]
[347876129,1736176252220,-500.0,0.00020273,3]
[347876130,1736176252229,-500.0,0.00020273,3]
[347876131,1736176252238,-500.0,0.00020273,3]
[347876132,1736176252251,-500.0,0.00020273,3]
[347876133,1736176252263,-500.0,0.00020273,3]
[347876134,1736176252272,-300.0,0.000203,8]
[347876135,1736176252282,-1000.0,0.00020321,2]
[347876136,1736176252292,-5388.49,0.00020546,3]
[347876137,1736176252301,-5388.49,0.00020546,3]
[347876138,1736176252310,-5388.49,0.00020546,3]
[347876139,1736176252320,-5388.49,0.00020546,3]
[347876140,1736176252329,-5388.58628146,0.00020546,3]
[347876141,1736176252338,-500.0,0.00020547,3]
[347876142,1736176252348,-500.0,0.00020547,3]
[347876143,1736176252357,-500.0,0.00020547,3]
[347876144,1736176252366,-500.0,0.00020547,3]
[347876145,1736176252376,-500.0,0.00020547,3]
[347876146,1736176252387,-398.59,0.00020547,3]
[347876147,1736176252397,-500.0,0.00020547,3]
[347876148,1736176252407,-500.0,0.00020547,3]
[347876149,1736176252417,-486.99,0.00020547,3]
[347876150,1736176252426,-345.89,0.00020547,3]
[347876151,1736176252436,-500.0,0.00020547,3]
[347876152,1736176252446,-3279.32,0.00020547,3]
[347876153,1736176252533,-500.0,0.00020547,3]
[347876154,1736176252542,-451.24,0.00020547,3]
[347876155,1736176252552,-500.0,0.00020547,3]
[347876156,1736176252562,-500.0,0.00020547,3]
[347876157,1736176252572,-2483.39,0.00020547,3]
[347876158,1736176252583,-500.0,0.00020547,3]
[347876159,1736176252593,-500.0,0.00020547,3]
[347876160,1736176252603,-420.38,0.00020547,3]
[347876161,1736176252613,-500.0,0.00020547,3]
[347876162,1736176252622,-500.0,0.00020547,3]
[347876163,1736176252632,-500.0,0.00020547,3]
[347876164,1736176252642,-503.32122877,0.00020547,3]
[347876165,1736176252652,-500.0,0.00020547,3]
[347876166,1736176252661,-500.0,0.00020547,3]
[347876167,1736176252671,-768.89,0.00020547,3]
[347876168,1736176252681,-1864.28,0.00020547,3]
[347876169,1736176252691,-500.0,0.00020547,3]
[347876170,1736176252703,-500.0,0.00020547,3]
[347876171,1736176252712,-500.0,0.00020547,3]
[347876172,1736176252722,-500.0,0.00020547,3]
[347876173,1736176252732,-500.0,0.00020547,3]
[347876174,1736176252743,-500.0,0.00020547,3]
[347876175,1736176252753,-10186.74,0.00020547,3]
[347876176,1736176252768,-785.92,0.00020547,3]
[347876177,1736176252778,-500.0,0.00020547,3]
[347876178,1736176252788,-470.57339483,0.00020547,3]
[347876179,1736176252797,-819.79,0.00020547,3]
[347876180,1736176252807,-500.0,0.00020547,3]
[347876181,1736176252817,-500.0,0.00020547,3]
[347876182,1736176252827,-500.0,0.00020547,3]
[347876183,1736176252836,-500.0,0.00020547,3]
[347876184,1736176252847,-500.0,0.00020547,3]
[347876185,1736176252857,-500.0,0.00020547,3]
[347876186,1736176252867,-500.0,0.00020547,3]
[347876187,1736176252877,-500.0,0.00020547,3]
[347876188,1736176252887,-500.0,0.00020547,3]
[347876189,1736176252897,-500.0,0.00020547,3]
[347876190,1736176252907,-500.0,0.00020547,3]
[347876191,1736176252916,-500.0,0.00020547,3]
[347876192,1736176252926,-500.0,0.00020547,3]
[347876193,1736176252935,-500.0,0.00020547,3]
[347876194,1736176252945,-500.0,0.00020547,3]
[347876195,1736176252956,-938.96,0.00020547,3]
[347876196,1736176252965,-500.0,0.00020547,3]
[347876197,1736176252975,-733.9,0.00020547,3]
[347876198,1736176252984,-500.0,0.00020547,3]
[347876199,1736176252993,-500.0,0.00020547,3]
[347876200,1736176253003,-500.0,0.00020547,3]
[347876201,1736176253017,-1261.71,0.00020547,3]
[347876202,1736176253028,-501.21,0.00020547,3]
[347876203,1736176253040,-500.0,0.00020547,3]
[347876204,1736176253049,-500.0,0.00020547,3]
[347876205,1736176253059,-1198.9,0.000207,2]
[347876206,1736176253068,-151.0,0.000207,3]
[347876207,1736176253077,-500.0,0.00020821,3]
[347876208,1736176253087,-500.0,0.00020821,3]
[347876209,1736176253097,-500.0,0.00020821,3]
[347876210,1736176253107,-500.0,0.00020821,3]
[347876211,1736176253118,-500.0,0.00020821,3]
[347876212,1736176253127,-255.87,0.00020821,3]
[347876213,1736176253137,-3279.32,0.00020821,3]
[347876214,1736176253147,-307.99,0.00020821,3]
[347876215,1736176253157,-500.0,0.00020821,3]
[347876216,1736176253167,-2483.39,0.00020821,3]
[347876217,1736176253177,-500.0,0.00020821,3]
[347876218,1736176253187,-371.28858741,0.00020821,3]
[347876219,1736176253197,-533.07,0.00020821,3]
[347876220,1736176253207,-594.85,0.00020821,3]
[347876221,1736176253216,-393.57586248,0.00020821,3]
[347876222,1736176253226,-768.89,0.00020821,3]
[347876223,1736176253236,-1864.28,0.00020821,3]
[347876224,1736176253245,-500.0,0.00020821,3]
[347876225,1736176253258,-500.0,0.00020821,3]
[347876226,1736176253268,-500.0,0.00020821,3]
[347876227,1736176253278,-500.0,0.00020821,3]
[347876228,1736176253289,-10186.74,0.00020821,3]
[347876229,1736176253299,-785.92,0.00020821,3]
[347876230,1736176253309,-568.67290174,0.00020821,3]
[347876231,1736176253319,-819.79,0.00020821,3]
[347876232,1736176253329,-500.0,0.00020821,3]
[347876233,1736176253338,-500.0,0.00020821,3]
[347876234,1736176253347,-500.0,0.00020821,3]
[347876235,1736176253357,-500.0,0.00020821,3]
[347876236,1736176253368,-500.0,0.00020821,3]
[347876237,1736176253379,-500.0,0.00020821,3]
[347876238,1736176253388,-500.0,0.00020821,3]
[347876239,1736176253398,-196.15093824,0.00020821,3]
[347876240,1736176253407,-500.0,0.00020821,3]
[347876241,1736176253417,-500.0,0.00020821,3]
[347876242,1736176253427,-289.94,0.00020821,3]
[347876243,1736176253438,-938.96,0.00020821,3]
[347876244,1736176253447,-500.0,0.00020821,3]
[347876245,1736176253456,-733.9,0.00020821,3]
[347876246,1736176253466,-500.0,0.00020821,3]
[347876247,1736176253475,-500.0,0.00020821,3]
[347876248,1736176253485,-1261.71,0.00020821,3]
[347876249,1736176253495,-500.0,0.00020821,3]
[347876250,1736176253505,-500.0,0.00020821,3]
[347876251,1736176253519,-5164.75756255,0.00021,2]
[347876252,1736176253529,-5164.75756255,0.00021,2]
[347876253,1736176253539,-150.0,0.00021,2]
[347876254,1736176253549,-500.0,0.00021095,3]
[347876255,1736176253559,-500.0,0.00021095,3]
[347876256,1736176253569,-500.0,0.00021095,3]
[347876257,1736176253580,-500.0,0.00021095,3]
[347876258,1736176253589,-500.0,0.00021095,3]
[347876259,1736176253599,-3279.32,0.00021095,3]
[347876260,1736176253610,-500.0,0.00021095,3]
[347876261,1736176253621,-2483.39,0.00021095,3]
[347876262,1736176253631,-768.89,0.00021095,3]
[347876263,1736176253641,-1864.28,0.00021095,3]
[347876264,1736176253651,-500.0,0.00021095,3]
[347876265,1736176253661,-500.0,0.00021095,3]
[347876266,1736176253671,-500.0,0.00021095,3]
[347876267,1736176253681,-10186.74,0.00021095,3]
[347876268,1736176253691,-785.92,0.00021095,3]
[347876269,1736176253701,-677.96792108,0.00021095,3]
[347876270,1736176253810,-500.0,0.00019178,2]
[347876271,1736176253820,-500.0,0.00019178,2]
[347876272,1736176253830,-500.0,0.00019178,2]
[347876273,1736176253840,-500.0,0.00019452,3]
[347876274,1736176253849,-438.0,0.00019726,3]
[347876275,1736176253860,-141.82207892,0.00021095,3]
[347876276,1736176253870,-500.0,0.00021095,3]
[347876277,1736176253880,-500.0,0.00021095,3]
[347876278,1736176253889,-500.0,0.00021095,3]
[347876279,1736176253899,-500.0,0.00021095,3]
[347876280,1736176253908,-500.0,0.00021095,3]
[347876281,1736176253918,-500.0,0.00021095,3]
[347876282,1736176253927,-938.96,0.00021095,3]
[347876283,1736176253936,-500.0,0.00021095,3]
[347876284,1736176253946,-733.9,0.00021095,3]
[347876285,1736176253955,-500.0,0.00021095,3]
[347876286,1736176253965,-500.0,0.00021095,3]
[347876287,1736176253975,-1261.71,0.00021095,3]
[347876288,1736176253984,-500.0,0.00021095,3]
[347876289,1736176253992,-500.0,0.00021095,3]
[347876290,1736176254001,-500.0,0.00021202,2]
[347876291,1736176254012,-500.0,0.00021202,2]
[347876292,1736176254021,-1200.0,0.00021229,2]
[347876293,1736176254032,-1500.0,0.00021322,2]
[347876294,1736176254042,-323.16,0.00021369,3]
[347876295,1736176254052,-527.29,0.00021369,3]
[347876296,1736176254062,-500.0,0.00021369,3]
[347876297,1736176254071,-500.0,0.00021369,3]
[347876298,1736176254081,-499.06,0.00021369,3]
[347876299,1736176254161,-3279.32,0.00021369,3]
[347876300,1736176254171,-500.0,0.00021369,3]
[347876301,1736176254181,-2483.39,0.00021369,3]
[347876302,1736176254191,-768.89,0.00021369,3]
[347876303,1736176254201,-1864.28,0.00021369,3]
[347876304,1736176254211,-500.0,0.00021369,3]
[347876305,1736176254220,-500.0,0.00021369,3]
[347876306,1736176254230,-210.76,0.00021369,3]
[347876307,1736176254240,-10186.74,0.00021369,3]
[347876308,1736176254250,-785.92,0.00021369,3]
[347876309,1736176254263,-819.79,0.00021369,3]
[347876310,1736176254272,-500.0,0.00021369,3]
[347876311,1736176254283,-500.0,0.00021369,3]
[347876312,1736176254293,-500.0,0.00021369,3]
[347876313,1736176254303,-500.0,0.00021369,3]
[347876314,1736176254314,-500.0,0.00021369,3]
[347876315,1736176254324,-500.0,0.00021369,3]
[347876316,1736176254335,-938.96,0.00021369,3]
[347876317,1736176254345,-594.80242283,0.00021369,3]
[347876318,1736176254355,-733.9,0.00021369,3]
[347876319,1736176254365,-500.0,0.00021369,3]
[347876320,1736176254375,-500.0,0.00021369,3]
[347876321,1736176254385,-1261.71,0.00021369,3]
[347876322,1736176254395,-216.34,0.00021369,3]
[347876323,1736176254404,-500.0,0.00021369,3]
[347876324,1736176254414,-8754.11,0.000214,2]
[347876325,1736176254423,-7258.8,0.000214,2]
[347876326,1736176254433,-3862.0,0.000216,4]
[347876327,1736176254442,-500.0,0.00021643,3]
[347876328,1736176254452,-500.0,0.00021643,3]
[347876329,1736176254461,-3279.32,0.00021643,3]
[347876330,1736176254470,-500.0,0.00021643,3]
[347876331,1736176254479,-2483.39,0.00021643,3]
[347876332,1736176254489,-768.89,0.00021643,3]
[347876333,1736176254498,-1864.28,0.00021643,3]
[347876334,1736176254510,-500.0,0.00021643,3]
[347876335,1736176254520,-500.0,0.00021643,3]
[347876336,1736176254530,-10186.74,0.00021643,3]
[347876337,1736176254540,-785.92,0.00021643,3]
[347876338,1736176254550,-819.79,0.00021643,3]
[347876339,1736176254560,-500.0,0.00021643,3]
[347876340,1736176254570,-500.0,0.00021643,3]
[347876341,1736176254579,-500.0,0.00021643,3]
[347876342,1736176254589,-500.0,0.00021643,3]
[347876343,1736176254599,-381.69,0.00021643,3]
[347876344,1736176254610,-500.0,0.00021643,3]
[347876345,1736176254620,-938.96,0.00021643,3]
[347876346,1736176254631,-733.9,0.00021643,3]
[347876347,1736176254640,-500.0,0.00021643,3]
[347876348,1736176254650,-500.0,0.00021643,3]
[347876349,1736176254660,-1261.71,0.00021643,3]
[347876350,1736176254670,-500.0,0.00021643,3]
[347876351,1736176254680,-10874.01763749,0.00021663,2]
[347876352,1736176254690,-1000.0,0.000217,30]
[347876353,1736176254701,-587.0,0.0002176,2]
[347876354,1736176254711,-309.919614,0.000218,9]
[347876355,1736176254721,-500.0,0.00021917,3]
[347876356,1736176254731,-487.53,0.00021917,3]
[347876357,1736176254741,-3279.32,0.00021917,3]
[347876358,1736176254753,-500.0,0.00021917,3]
[347876359,1736176254769,-2483.39,0.00021917,3]
[347876360,1736176254778,-151.0,0.00021917,2]
[347876361,1736176254790,-768.89,0.00021917,3]
[347876362,1736176254800,-1864.28,0.00021917,3]
[347876363,1736176254810,-500.0,0.00021917,3]
[347876364,1736176254821,-500.0,0.00021917,3]
[347876365,1736176254832,-10186.74,0.00021917,3]
[347876366,1736176254842,-785.92,0.00021917,3]
[347876367,1736176254854,-819.79,0.00021917,3]
[347876368,1736176254865,-500.0,0.00021917,3]
[347876369,1736176254875,-500.0,0.00021917,3]
[347876370,1736176254889,-500.0,0.00021917,3]
[347876371,1736176254905,-500.0,0.00021917,3]
[347876372,1736176254920,-500.0,0.00021917,3]
[347876373,1736176254934,-938.96,0.00021917,3]
[347876374,1736176254949,-733.9,0.00021917,3]
[347876375,1736176254965,-384.09,0.00021917,3]
[347876376,1736176254981,-500.0,0.00021917,3]
[347876377,1736176254997,-1261.71,0.00021917,3]
[347876378,1736176255017,-203.35,0.00021917,3]
[347876379,1736176255036,-481.511,0.0002194,2]
[347876380,1736176255052,-4000.0,0.00022,7]
[347876381,1736176255068,-10874.01763749,0.00022007,2]
[347876382,1736176255082,-500.0,0.00022191,3]
[347876383,1736176255095,-3279.32,0.00022191,3]
[347876384,1736176255109,-500.0,0.00022191,3]
[347876385,1736176255125,-2483.39,0.00022191,3]
[347876386,1736176255142,-768.89,0.00022191,3]
[347876387,1736176255157,-1864.28,0.00022191,3]
[347876388,1736176255172,-500.0,0.00022191,3]
[347876389,1736176255184,-272.0,0.00022191,3]
[347876390,1736176255196,-10186.74,0.00022191,3]
[347876391,1736176255211,-785.92,0.00022191,3]
[347876392,1736176255228,-819.79,0.00022191,3]
[347876393,1736176255240,-500.0,0.00022191,3]
[347876394,1736176255254,-500.0,0.00022191,3]
[347876395,1736176255272,-500.0,0.00022191,3]
[347876396,1736176255285,-500.0,0.00022191,3]
[347876397,1736176255297,-500.0,0.00022191,3]
[347876398,1736176255310,-938.96,0.00022191,3]
[347876399,1736176255323,-733.9,0.00022191,3]
[347876400,1736176255336,-500.0,0.00022191,3]
[347876401,1736176255349,-1261.71,0.00022191,3]
[347876402,1736176255362,-3485.51,0.000222,14]
[347876403,1736176255374,-394.0,0.00022233,2]
[347876404,1736176255387,-10874.01763749,0.00022258,2]
[347876405,1736176255399,-499.50363533,0.00022365,2]
[347876406,1736176255411,-151.0,0.00022457,7]
[347876407,1736176255424,-151.0,0.00022457,7]
[347876408,1736176255437,-618.55,0.00022465,3]
[347876409,1736176255450,-3279.32,0.00022465,3]
[347876410,1736176255463,-500.0,0.00022465,3]
[347876411,1736176255474,-151.0,0.00022465,7]
[347876412,1736176255483,-2483.39,0.00022465,3]
[347876413,1736176255494,-151.0,0.00022465,7]
[347876414,1736176255503,-768.89,0.00022465,3]
[347876415,1736176255516,-1864.28,0.00022465,3]
[347876416,1736176255525,-500.0,0.00022465,3]
[347876417,1736176255535,-10186.74,0.00022465,3]
[347876418,1736176255545,-785.92,0.00022465,3]
[347876419,1736176255556,-819.79,0.00022465,3]
[347876420,1736176255566,-500.0,0.00022465,3]
[347876421,1736176255577,-500.0,0.00022465,3]
[347876422,1736176255587,-500.0,0.00022465,3]
[347876423,1736176255596,-500.0,0.00022465,3]
[347876424,1736176255607,-500.0,0.00022465,3]
[347876425,1736176255617,-938.96,0.00022465,3]
[347876426,1736176255628,-733.9,0.00022465,3]
[347876427,1736176255638,-500.0,0.00022465,3]
[347876428,1736176255648,-1261.71,0.00022465,3]
[347876429,1736176255657,-2000.0,0.0002262,2]
[347876430,1736176255667,-10874.01763749,0.0002271,2]
[347876431,1736176255677,-3279.32,0.00022739,3]
[347876432,1736176255687,-151.0,0.00022739,7]
[347876433,1736176255697,-500.0,0.00022739,3]
[347876434,1736176255707,-2483.39,0.00022739,3]
[347876435,1736176255717,-768.89,0.00022739,3]
[347876436,1736176255727,-1864.28,0.00022739,3]
[347876437,1736176255737,-527.04,0.00022739,3]
[347876438,1736176255746,-10186.74,0.00022739,3]
[347876439,1736176255756,-785.92,0.00022739,3]
[347876440,1736176255771,-819.79,0.00022739,3]
[347876441,1736176255780,-500.0,0.00022739,3]
[347876442,1736176255790,-178.19,0.00022739,3]
[347876443,1736176255994,-500.0,0.00022739,3]
[347876444,1736176256004,-500.0,0.00022739,3]
[347876445,1736176256020,-500.0,0.00022739,3]
[347876446,1736176256033,-733.9,0.00022739,3]
[347876447,1736176256043,-938.96,0.00022739,3]
[347876448,1736176256053,-500.0,0.00022739,3]
[347876449,1736176256063,-1261.71,0.00022739,3]
[347876450,1736176256073,-535.0,0.00022749,2]
[347876451,1736176256083,-1147.439,0.00022749,2]